Department Family,Entity,Date,Expense Type,Expense Area,Supplier,Transaction No,Amount,Description,Post Code
Department of Health,NHS Business Services Authority,21/01/2022,Civil Service Pension,Statutory Payments,CABINET OFFICE CIVIL SERVICE PENSIONS,0080127624,"53,774.70",CONTRIBUTIONS  JAN 2022,RG24 9NW
Department of Health,NHS Business Services Authority,21/01/2022,IT Hardware Purchases,Technology,COMPUTACENTER (UK) LTD,0080127211,"42,734.40",Product:  Latitude 5420 i5 8GB ,AL10 9TW
Department of Health,NHS Business Services Authority,11/01/2022,PC Purchases,Citizen Services,COMPUTACENTER (UK) LTD,0080127429,"128,235.60",Product:  Latitude 5420 i5 8GB ,AL10 9TW
Department of Health,NHS Business Services Authority,11/01/2022,IBM Maintenance Contract,Technology,COMPUTACENTER (UK) LTD,0080127435,"3,151.68",Part No. E0R7ULL - IBM WebSphere Hybrid ,AL10 9TW
Department of Health,NHS Business Services Authority,11/01/2022,IBM Maintenance Contract,Technology,COMPUTACENTER (UK) LTD,0080127435,"34,560.20",Part No. E0LM4LL - IBM Security Verify ,AL10 9TW
Department of Health,NHS Business Services Authority,11/01/2022,IBM Maintenance Contract,Technology,COMPUTACENTER (UK) LTD,0080127435,"23,682.24",Part No. E01MJLL - IBM Rational ,AL10 9TW
Department of Health,NHS Business Services Authority,11/01/2022,IBM Maintenance Contract,Technology,COMPUTACENTER (UK) LTD,0080127435,"57,012.90",Part No. E0256LL - IBM MQ Processer ,AL10 9TW
Department of Health,NHS Business Services Authority,11/01/2022,IBM Maintenance Contract,Technology,COMPUTACENTER (UK) LTD,0080127435,"157,466.42",Annual Renewal of IBM Software:,AL10 9TW
Department of Health,NHS Business Services Authority,18/01/2022,IT Hardware Purchases,Technology,COMPUTACENTER (UK) LTD,0080127516,"56,860.04","Microsoft Surface Laptop 4 15"" Core i7 1",AL10 9TW
Department of Health,NHS Business Services Authority,18/01/2022,IT Hardware Purchases,Technology,COMPUTACENTER (UK) LTD,0080127516,"87,066.92",MISC,AL10 9TW
Department of Health,NHS Business Services Authority,14/01/2022,Minor Works,Finance & Commercial,COMPASS SERVICES UK & IRELAND LTD,0080127535,"28,933.35",TO.CE.94 - Additional cleaning services ,B45 9PZ
Department of Health,NHS Business Services Authority,14/01/2022,Soft FM Contract,Finance & Commercial,COMPASS SERVICES UK & IRELAND LTD,0080127536,"193,255.13",Combined  Soft FM Contract extension  ,B45 9PZ
Department of Health,NHS Business Services Authority,07/01/2022,Software,NHS Workforce Services,IBM UK LTD,0080127352,"37,724.95",IBM ESR DCT project,PO6 3AF
Department of Health,NHS Business Services Authority,11/01/2022,Software,NHS Workforce Services,IBM UK LTD,0080127354,"20,888.56",IBM ESR DCT project,PO6 3AF
Department of Health,NHS Business Services Authority,11/01/2022,Software,NHS Workforce Services,IBM UK LTD,0080127355,"64,402.78",IBM ESR DCT project,PO6 3AF
Department of Health,NHS Business Services Authority,11/01/2022,Software,NHS Workforce Services,IBM UK LTD,0080127403,"469,637.11",IBM ESR DCT project,PO6 3AF
Department of Health,NHS Business Services Authority,21/01/2022,Software,NHS Workforce Services,IBM UK LTD,0080127404,"365,042.92",IBM ESR DCT project,PO6 3AF
Department of Health,NHS Business Services Authority,21/01/2022,Software,NHS Workforce Services,IBM UK LTD,0080127404,"77,318.79",IBM ESR DCT project,PO6 3AF
Department of Health,NHS Business Services Authority,21/01/2022,Software,NHS Workforce Services,IBM UK LTD,0080127404,"8,024.21",IBM ESR DCT project,PO6 3AF
Department of Health,NHS Business Services Authority,14/01/2022,IBM - Baseline,NHS Workforce Services,IBM UK LTD,0080127437,0.15,IBM ESR Service Charges FY21-25,PO6 3AF
Department of Health,NHS Business Services Authority,14/01/2022,IBM - Baseline,NHS Workforce Services,IBM UK LTD,0080127437,"2,034,010.94",IBM ESR Service Charges FY21-25,PO6 3AF
Department of Health,NHS Business Services Authority,05/01/2022,Minor Works,Finance & Commercial,INTEGRATED HEALTH PROJECTS,0080127311,"2,257.86",TO.CE -77.3 Asbestos Survey Reports - ,HP2 7TR
Department of Health,NHS Business Services Authority,05/01/2022,Hard FM Reactive,Finance & Commercial,INTEGRATED HEALTH PROJECTS,0080127311,"2,549.40",TO.CE-75.2 � Hesketh House Computer ,HP2 7TR
Department of Health,NHS Business Services Authority,05/01/2022,Hard FM Reactive,Finance & Commercial,INTEGRATED HEALTH PROJECTS,0080127311,552.48,,HP2 7TR
Department of Health,NHS Business Services Authority,05/01/2022,Hard FM Reactive,Finance & Commercial,INTEGRATED HEALTH PROJECTS,0080127311,316.15,TO.CE 78.1 -  Fire Stategies for BSA ,HP2 7TR
Department of Health,NHS Business Services Authority,05/01/2022,Hard FM Reactive,Finance & Commercial,INTEGRATED HEALTH PROJECTS,0080127311,"1,360.97",CE 74.4 -  Stella House SW Corner Roof ,HP2 7TR
Department of Health,NHS Business Services Authority,05/01/2022,Professional Fees,Finance & Commercial,INTEGRATED HEALTH PROJECTS,0080127311,329.44,,HP2 7TR
Department of Health,NHS Business Services Authority,05/01/2022,Professional Fees,Finance & Commercial,INTEGRATED HEALTH PROJECTS,0080127311,"14,587.75",TO.CE-81.1 Zero Emissions Programme ,HP2 7TR
Department of Health,NHS Business Services Authority,05/01/2022,Building Works,Finance & Commercial,INTEGRATED HEALTH PROJECTS,0080127311,"359,494.23",TO. CE79.1 - Greenfinch Sprinkler Works ,HP2 7TR
Department of Health,NHS Business Services Authority,05/01/2022,Building Works,Finance & Commercial,INTEGRATED HEALTH PROJECTS,0080127311,"57,772.58",TO.CE-80.5 Greenfinch Way 1st floor ,HP2 7TR
Department of Health,NHS Business Services Authority,05/01/2022,Building Works,Finance & Commercial,INTEGRATED HEALTH PROJECTS,0080127311,208.32,TO.CE-82.2 Greenfinch Way Extension ,HP2 7TR
Department of Health,NHS Business Services Authority,07/01/2022,Minor Works,Finance & Commercial,INTEGRATED HEALTH PROJECTS,0080127345,548.36,TO.CE -77.3 Asbestos Survey Reports - ,HP2 7TR
Department of Health,NHS Business Services Authority,07/01/2022,Minor Works,Finance & Commercial,INTEGRATED HEALTH PROJECTS,0080127345,"2,033.03",TO. CE 77.02 - Monthly air reassurance ,HP2 7TR
Department of Health,NHS Business Services Authority,07/01/2022,Software Licences,Finance & Commercial,INTEGRATED HEALTH PROJECTS,0080127345,"12,615.12",TO.CE-74.14 CEMAR Renewal,HP2 7TR
Department of Health,NHS Business Services Authority,07/01/2022,Hard FM Reactive,Finance & Commercial,INTEGRATED HEALTH PROJECTS,0080127345,"9,920.40",TO.CE-75.2 � Hesketh House Computer ,HP2 7TR
Department of Health,NHS Business Services Authority,07/01/2022,Minor Works,Finance & Commercial,INTEGRATED HEALTH PROJECTS,0080127345,"1,662.35","TO.CE-74.5, 1st Floor Server Room A/C ",HP2 7TR
Department of Health,NHS Business Services Authority,07/01/2022,Hard FM Reactive,Finance & Commercial,INTEGRATED HEALTH PROJECTS,0080127345,136.70,CE 76.3 - Stage 2 Bridge House ,HP2 7TR
Department of Health,NHS Business Services Authority,07/01/2022,Hard FM Reactive,Finance & Commercial,INTEGRATED HEALTH PROJECTS,0080127345,"3,684.22",TO.CE 78.1 -  Fire Stategies for BSA ,HP2 7TR
Department of Health,NHS Business Services Authority,07/01/2022,Hard FM Reactive,Finance & Commercial,INTEGRATED HEALTH PROJECTS,0080127345,"5,759.09",CE 74.4 -  Stella House SW Corner Roof ,HP2 7TR
Department of Health,NHS Business Services Authority,07/01/2022,Hard FM Reactive,Finance & Commercial,INTEGRATED HEALTH PROJECTS,0080127345,"3,833.83",TO.CE- 74.9 -BH Cladding inspection and ,HP2 7TR
Department of Health,NHS Business Services Authority,07/01/2022,Hard FM Reactive,Finance & Commercial,INTEGRATED HEALTH PROJECTS,0080127345,"18,857.09",CE 75.4 HH Roof replacement - Computer ,HP2 7TR
Department of Health,NHS Business Services Authority,07/01/2022,Hard FM Reactive,Finance & Commercial,INTEGRATED HEALTH PROJECTS,0080127345,"18,418.86",CE 75.5 Hesketh House Rooflight Removal,HP2 7TR
Department of Health,NHS Business Services Authority,07/01/2022,Hard FM Reactive,Finance & Commercial,INTEGRATED HEALTH PROJECTS,0080127345,"10,277.38",CE 74.13 Stella House pond clearing,HP2 7TR
Department of Health,NHS Business Services Authority,07/01/2022,Hard FM Reactive,Finance & Commercial,INTEGRATED HEALTH PROJECTS,0080127345,"5,079.38",TO-CE-78.2 Fire Compartment Surveys,HP2 7TR
Department of Health,NHS Business Services Authority,07/01/2022,Minor Works,Finance & Commercial,INTEGRATED HEALTH PROJECTS,0080127345,681.40,TO.CE-83.1 � Server room works � ,HP2 7TR
Department of Health,NHS Business Services Authority,07/01/2022,Professional Fees,Finance & Commercial,INTEGRATED HEALTH PROJECTS,0080127345,"30,497.30",TO.CE-81.1 Zero Emissions Programme ,HP2 7TR
Department of Health,NHS Business Services Authority,07/01/2022,Minor Works,Finance & Commercial,INTEGRATED HEALTH PROJECTS,0080127345,350.72,CE 85.1 - Benton Dilapidation Stage 1 ,HP2 7TR
Department of Health,NHS Business Services Authority,07/01/2022,Building Works,Finance & Commercial,INTEGRATED HEALTH PROJECTS,0080127345,"157,470.11",TO. CE79.1 - Greenfinch Sprinkler Works ,HP2 7TR
Department of Health,NHS Business Services Authority,07/01/2022,Building Works,Finance & Commercial,INTEGRATED HEALTH PROJECTS,0080127345,"2,057.17",TO.CE-82.1 Greenfinch Gas Removal Stage ,HP2 7TR
Department of Health,NHS Business Services Authority,07/01/2022,Building Works,Finance & Commercial,INTEGRATED HEALTH PROJECTS,0080127345,"107,135.34",TO.CE-80.5 Greenfinch Way 1st floor ,HP2 7TR
Department of Health,NHS Business Services Authority,25/01/2022,Telephony - Core User Profiles,Technology,KCOM,0080127700,"27,520.50",Annual Service Charges Lot 10 Unified ,HU1 3RE
Department of Health,NHS Business Services Authority,25/01/2022,Telephony - Core User Profiles,Technology,KCOM,0080127700,"9,616.20",Video Conferencing Licences,HU1 3RE
Department of Health,NHS Business Services Authority,25/01/2022,Telephony - CC Inbound,Technology,KCOM,0080127700,"64,386.60",Contact Centre Telephony,HU1 3RE
Department of Health,NHS Business Services Authority,25/01/2022,Telephony - CC Inbound,Technology,KCOM,0080127700,"2,794.80",Contact Centre Homeworkers,HU1 3RE
Department of Health,NHS Business Services Authority,18/01/2022,Licences Purchases / Renewals,Primary Care Services,KOFAX UK LIMITED,0080127241,"137,846.24",Renewal of Kofax annual support and main,RG24 8WD
Department of Health,NHS Business Services Authority,07/01/2022,Rates Charges,Finance & Commercial,NEWCASTLE CITY COUNCIL,0050038981,"31,726.00",A/C 6910059421/JAN22,NE99 2PT
Department of Health,NHS Business Services Authority,25/01/2022,Postage Charges,NHS Workforce Services,ROYAL MAIL,0080127672,"19,462.19",A/C 0006456045,S49 1HQ
Department of Health,NHS Business Services Authority,25/01/2022,Postage Charges,NHS Workforce Services,ROYAL MAIL,0080127672,"1,779.23",A/C 0006456045,S49 1HQ
Department of Health,NHS Business Services Authority,25/01/2022,Postage Charges,NHS Workforce Services,ROYAL MAIL,0080127672,79.35,A/C 0006456045,S49 1HQ
Department of Health,NHS Business Services Authority,05/01/2022,Professional Fees,Technology,TRUSTMARQUE SOLUTIONS LTD,0080127319,"160,102.78",Part No: Microsoft ,YO41 1LZ
Department of Health,NHS Business Services Authority,21/01/2022,NHS Pension Add Ers Cont,Statutory Payments,NHS PENSIONS ,0080127597,"440,000.00",EMPLOYER CONTRIBUTIONS DEC 21,FY7 8LG
Department of Health,NHS Business Services Authority,18/01/2022,Apprenticeship Levy,Corp Services & Corp Secretary,HM REVENUE & CUSTOMS 948PX00194660,0050038991,"45,973.00",LEVY,NE98 1ZZ
Department of Health,NHS Business Services Authority,18/01/2022,Apprenticeship Levy,Corp Services & Corp Secretary,HM REVENUE & CUSTOMS 948PX00194660,0050038991,107.00,Supp1 Levy,NE98 1ZZ
Department of Health,NHS Business Services Authority,18/01/2022,Income Tax,Statutory Payments,HM REVENUE & CUSTOMS 948PX00194660,0050038991,"1,507.80",Supp  1 income tax,NE98 1ZZ
Department of Health,NHS Business Services Authority,18/01/2022,Income Tax,Statutory Payments,HM REVENUE & CUSTOMS 948PX00194660,0050038991,"828,718.59",948PX00194660/DEC21,NE98 1ZZ
Department of Health,NHS Business Services Authority,18/01/2022,National Insurance,Statutory Payments,HM REVENUE & CUSTOMS 948PX00194660,0050038991,"1,644.00",Supp1 NI ERS,NE98 1ZZ
Department of Health,NHS Business Services Authority,18/01/2022,National Insurance,Statutory Payments,HM REVENUE & CUSTOMS 948PX00194660,0050038991,"1,343.19",Supp1 NI EES,NE98 1ZZ
Department of Health,NHS Business Services Authority,18/01/2022,National Insurance,Statutory Payments,HM REVENUE & CUSTOMS 948PX00194660,0050038991,"758,239.66",948PX00194660/DEC21,NE98 1ZZ
Department of Health,NHS Business Services Authority,18/01/2022,National Insurance,Statutory Payments,HM REVENUE & CUSTOMS 948PX00194660,0050038991,"601,445.88",948PX00194660/DEC21,NE98 1ZZ
Department of Health,NHS Business Services Authority,18/01/2022,Student Loan,Statutory Payments,HM REVENUE & CUSTOMS 948PX00194660,0050038991,215.00,Supp1 Student Loan,NE98 1ZZ
Department of Health,NHS Business Services Authority,18/01/2022,Student Loan,Statutory Payments,HM REVENUE & CUSTOMS 948PX00194660,0050038991,"36,567.00",948PX00194660/DEC21,NE98 1ZZ
Department of Health,NHS Business Services Authority,18/01/2022,SMP,Statutory Payments,HM REVENUE & CUSTOMS 948PX00194660,0050038991,"-37,215.26",SMP,NE98 1ZZ
Department of Health,NHS Business Services Authority,18/01/2022,SPP,Statutory Payments,HM REVENUE & CUSTOMS 948PX00194660,0050038991,"-1,841.85",SPP,NE98 1ZZ
Department of Health,NHS Business Services Authority,13/01/2022,Electricity,Finance & Commercial,EDF ENERGY ,0050038984,"25,410.32",A/C 1376210000,PL3 5XQ 
Department of Health,NHS Business Services Authority,21/01/2022,Professional Fees,NHS Workforce Services,ACUITY BUSINESS SOLUTIONS LTD,0080126844,"40,680.00",OBC development for ESR Transformation,EX2 8LB
Department of Health,NHS Business Services Authority,21/01/2022,Professional Fees,NHS Workforce Services,ACUITY BUSINESS SOLUTIONS LTD,0080127561,"4,080.00","Consultancy for Pensions Flexibilities, ",EX2 8LB
Department of Health,NHS Business Services Authority,21/01/2022,Professional Fees,NHS Workforce Services,ACUITY BUSINESS SOLUTIONS LTD,0080127561,"38,055.00","Consultancy for Pensions Flexibilities, ",EX2 8LB
Department of Health,NHS Business Services Authority,25/01/2022,Methods Contract,NHS Workforce Services,METHODS BUSINESS & DIGITAL TECH LTD,0080127724,"162,922.00",Methods Business + Digital Tech Ltd,EC1N 8TS
Department of Health,NHS Business Services Authority,14/01/2022,Printing Charges (External),Citizen Services,XEROX UK LIMITED,0080126865,"4,212.08",Non Stationery - Xerox UK Ltd,WF2 0XF
Department of Health,NHS Business Services Authority,14/01/2022,Printing Charges (External),Citizen Services,XEROX UK LIMITED,0080126865,"33,379.25",Non Stationery - Xerox UK Ltd,WF2 0XF
Department of Health,NHS Business Services Authority,28/01/2022,Printing Charges (External),Citizen Services,XEROX UK LIMITED,0080127513,627.98,MISC,WF2 0XF
Department of Health,NHS Business Services Authority,28/01/2022,Printing Charges (External),Citizen Services,XEROX UK LIMITED,0080127513,"23,262.62",Non Stationery - Xerox UK Ltd,WF2 0XF
Department of Health,NHS Business Services Authority,21/01/2022,Professional Fees,Citizen Services,XEROX UK LIMITED,0080127627,"157,229.10",Healthy Start Prepaid Cards & Financial ,WF2 0XF
Department of Health,NHS Business Services Authority,21/01/2022,Bank Charges,Citizen Services,ALLPAY LIMITED,0080125927,"40,075.84",PPC1,HR1 3SE
Department of Health,NHS Business Services Authority,21/01/2022,Bank Charges,Citizen Services,ALLPAY LIMITED,0080126718,"43,775.84",PPC1,HR1 3SE
Department of Health,NHS Business Services Authority,21/01/2022,Bank Charges,Citizen Services,ALLPAY LIMITED,0080127477,"41,120.32",PPC1 TRANSACTIONS,HR1 3SE
Department of Health,NHS Business Services Authority,18/01/2022,Hard FM Contract,Finance & Commercial,KIER FACILITIES SERVICES LTD,0080127595,"59,159.73",Kier Contract Extension,RG21 4HG
Department of Health,NHS Business Services Authority,21/01/2022,Medigold Medical Services,NHS Workforce Services,MEDIGOLD HEALTH CONSULTANCY,0080127641,"53,345.23",Medical Services being supplied by ,NN4 7BF
Department of Health,NHS Business Services Authority,21/01/2022,Professional Fees,NHS Workforce Services,ACCENTURE UK LIMITED,0080127381,"223,948.00",This Purchase Order is to secure a ,EC3M 3BD
Department of Health,NHS Business Services Authority,07/01/2022,Claybrook IT App Support,NHS Workforce Services,CLAYBROOK COMPUTING LTD,0080127382,"177,555.92",Monthly standard product support and ,RH10 1UH
Department of Health,NHS Business Services Authority,21/01/2022,External Staff Costs,NHS Workforce Services,CLAYBROOK COMPUTING LTD,0080127383,"80,000.00",To provide a draw down Capital funding ,RH10 1UH
Department of Health,NHS Business Services Authority,07/01/2022,External Staff Costs,NHS Workforce Services,CLAYBROOK COMPUTING LTD,0080127385,"83,147.00",To provide a draw down Capital funding ,RH10 1UH
Department of Health,NHS Business Services Authority,07/01/2022,Rent,NHS Workforce Services,CROWN HOSTING DATA CENTRES LTD,0080127340,"37,610.59","SRF001 - Rent, Power Charges & ",SN13 9GB
Department of Health,NHS Business Services Authority,07/01/2022,Electricity,NHS Workforce Services,CROWN HOSTING DATA CENTRES LTD,0080127340,"6,963.35","SRF001 - Rent, Power Charges & ",SN13 9GB
Department of Health,NHS Business Services Authority,07/01/2022,Rent,NHS Workforce Services,CROWN HOSTING DATA CENTRES LTD,0080127341,"37,200.99","SRF001 - Rent, Power Charges & ",SN13 9GB
Department of Health,NHS Business Services Authority,07/01/2022,Rent,NHS Workforce Services,CROWN HOSTING DATA CENTRES LTD,0080127341,"1,184.16","SRF001 - Rent, Power Charges & ",SN13 9GB
Department of Health,NHS Business Services Authority,07/01/2022,Electricity,NHS Workforce Services,CROWN HOSTING DATA CENTRES LTD,0080127341,"6,887.51","SRF001 - Rent, Power Charges & ",SN13 9GB
Department of Health,NHS Business Services Authority,07/01/2022,Electricity,NHS Workforce Services,CROWN HOSTING DATA CENTRES LTD,0080127341,219.24,"SRF001 - Rent, Power Charges & ",SN13 9GB
Department of Health,NHS Business Services Authority,18/01/2022,Professional Fees,COVID 19,MASTEK UK LTD,0080127126,"25,680.32",B08019 SOW055 Faster Testing Digital ,RG1 8BW
Department of Health,NHS Business Services Authority,25/01/2022,Professional Fees,Digital,MASTEK UK LTD,0080127753,"7,800.00",B98022 (Revenue) SOW006 OHS Operational ,RG1 8BW
Department of Health,NHS Business Services Authority,25/01/2022,Digital Development Recharge,Digital,MASTEK UK LTD,0080127753,"55,145.26",B99209 (Capital) SOW006 OHS Operational ,RG1 8BW
Department of Health,NHS Business Services Authority,25/01/2022,Professional Fees,Digital,MASTEK UK LTD,0080127754,"9,550.00",B98022 (Revenue) SOW005 Cost Recovery ,RG1 8BW
Department of Health,NHS Business Services Authority,25/01/2022,Digital Development Recharge,Digital,MASTEK UK LTD,0080127754,"47,537.50",B99209 (Capital) SOW005 Cost Recovery ,RG1 8BW
Department of Health,NHS Business Services Authority,25/01/2022,Professional Fees,Primary Care Services,MASTEK UK LTD,0080127758,"27,300.00",B98036 SOW048 Insight GP Survey and ,RG1 8BW
Department of Health,NHS Business Services Authority,25/01/2022,Professional Fees,Citizen Services,MASTEK UK LTD,0080127759,"6,000.00",B98031 (Revenue) SOW43 Healthy Start ,RG1 8BW
Department of Health,NHS Business Services Authority,25/01/2022,External Staff Costs,Citizen Services,MASTEK UK LTD,0080127759,"20,585.00",B99195 (Capital) SOW43 Healthy Start ,RG1 8BW
Department of Health,NHS Business Services Authority,28/01/2022,Professional Fees,Primary Care Services,MASTEK UK LTD,0080127791,"22,036.00",Provide team to deliver a continuation ,RG1 8BW
Department of Health,NHS Business Services Authority,07/01/2022,Temporary Staff,COVID 19,ALEXANDER MANN SOLUTIONS,0080127089,"3,291.84",TEMP STAFF,
Department of Health,NHS Business Services Authority,07/01/2022,Temporary Staff,COVID 19,ALEXANDER MANN SOLUTIONS,0080127089,"4,405.08",TEMP STAFF,
Department of Health,NHS Business Services Authority,07/01/2022,Temporary Staff,COVID 19,ALEXANDER MANN SOLUTIONS,0080127089,"4,405.08",TEMP STAFF,
Department of Health,NHS Business Services Authority,07/01/2022,Temporary Staff,COVID 19,ALEXANDER MANN SOLUTIONS,0080127089,"1,975.10",TEMP STAFF,
Department of Health,NHS Business Services Authority,07/01/2022,External Staff Costs,Digital,ALEXANDER MANN SOLUTIONS,0080127089,"2,761.08",TEMP STAFF,
Department of Health,NHS Business Services Authority,07/01/2022,External Staff Costs,Digital,ALEXANDER MANN SOLUTIONS,0080127089,"1,262.45",TEMP STAFF,
Department of Health,NHS Business Services Authority,07/01/2022,External Staff Costs,Citizen Services,ALEXANDER MANN SOLUTIONS,0080127089,"2,658.82",TEMP STAFF,
Department of Health,NHS Business Services Authority,07/01/2022,External Staff Costs,Citizen Services,ALEXANDER MANN SOLUTIONS,0080127089,"3,323.52",TEMP STAFF,
Department of Health,NHS Business Services Authority,07/01/2022,External Staff Costs,Citizen Services,ALEXANDER MANN SOLUTIONS,0080127089,"3,323.52",TEMP STAFF,
Department of Health,NHS Business Services Authority,07/01/2022,External Staff Costs,Citizen Services,ALEXANDER MANN SOLUTIONS,0080127089,"3,323.52",TEMP STAFF,
Department of Health,NHS Business Services Authority,07/01/2022,External Staff Costs,NHS Workforce Services,ALEXANDER MANN SOLUTIONS,0080127089,"4,527.12",TEMP STAFF,
Department of Health,NHS Business Services Authority,07/01/2022,Temporary Staff,Citizen Services,ALEXANDER MANN SOLUTIONS,0080127255,"55,688.09",TEMP STAFF,
Department of Health,NHS Business Services Authority,18/01/2022,Temporary Staff,COVID 19,ALEXANDER MANN SOLUTIONS,0080127262,"4,405.08",TEMP STAFF,
Department of Health,NHS Business Services Authority,18/01/2022,Temporary Staff,COVID 19,ALEXANDER MANN SOLUTIONS,0080127262,"3,291.84",TEMP STAFF,
Department of Health,NHS Business Services Authority,18/01/2022,External Staff Costs,Digital,ALEXANDER MANN SOLUTIONS,0080127262,"4,090.44",TEMP STAFF,
Department of Health,NHS Business Services Authority,18/01/2022,External Staff Costs,Digital,ALEXANDER MANN SOLUTIONS,0080127262,"3,067.86",TEMP STAFF,
Department of Health,NHS Business Services Authority,18/01/2022,External Staff Costs,Digital,ALEXANDER MANN SOLUTIONS,0080127262,"3,156.12",TEMP STAFF,
Department of Health,NHS Business Services Authority,18/01/2022,External Staff Costs,Digital,ALEXANDER MANN SOLUTIONS,0080127262,"4,090.44",TEMP STAFF,
Department of Health,NHS Business Services Authority,18/01/2022,External Staff Costs,NHS Workforce Services,ALEXANDER MANN SOLUTIONS,0080127262,"4,527.12",TEMP STAFF,
Department of Health,NHS Business Services Authority,07/01/2022,Temporary Staff,Citizen Services,ALEXANDER MANN SOLUTIONS,0080127367,"36,542.36",TEMP STAFF,
Department of Health,NHS Business Services Authority,25/01/2022,Temporary Staff,Citizen Services,ALEXANDER MANN SOLUTIONS,0080127770,"28,367.00",TEMP STAFF,
Department of Health,NHS Business Services Authority,14/01/2022,External Staff Costs,NHS Workforce Services,AGILISYS LIMITED,0080127314,"46,620.14",PEN-MIG-3c,W12 7RZ
Department of Health,NHS Business Services Authority,21/01/2022,External Staff Costs,Primary Care Services,TISSKI LIMITED,0080126801,"32,719.50",SOW25 Provider Assurance � Email & ,CV8 2LG
Department of Health,NHS Business Services Authority,18/01/2022,External Staff Costs,Primary Care Services,TISSKI LIMITED,0080127509,"29,084.00",SOW25 Provider Assurance � Email & ,CV8 2LG
Department of Health,NHS Business Services Authority,28/01/2022,Internal Audit Fees,Corp Services & Corp Secretary,HM TREASURY FOR G.I.A.A.,0080127737,"70,000.00",Q3 Internal Audit Fees,NR7 0HS
Department of Health,NHS Business Services Authority,14/01/2022,IT Hardware Purchases,NHS Workforce Services,FULLPROXY LTD,0080127301,"23,254.85",Digital Marketplace Service ID No. ,FK8 2NN
Department of Health,NHS Business Services Authority,14/01/2022,External Staff Costs,NHS Workforce Services,FULLPROXY LTD,0080127301,"3,150.68",Level 1-3 Premium Service for BIG-IP ,FK8 2NN
Department of Health,NHS Business Services Authority,01/01/2022,Pensions Division,NHS Workforce Services,,,"1,828,743.84",Payments to Pensioners,
Department of Health,NHS Business Services Authority,01/01/2022,Dental Contractors,Primary Care Services,,,"221,850,782.00",Payments to Dental Contractors,
Department of Health,NHS Business Services Authority,12/01/2022,Pharmacy Contractors,Primary Care Services,,,"620,735,803.72",Payments to Pharmacy Contractors,
Department of Health,NHS Business Services Authority,31/01/2022,Pharmacy Contractors,Primary Care Services,,,"7,534,045.25",Payments to Pharmacy Contractors,
,,,,,,,,Payments to Pharmacy Contractors,
